[Event "Titled Tuesday Blitz December 06 Early 2022"]
[White "Lenderman, Aleksandr"]
[Black "Gabuzyan, Hovhannes"]
[WhiteFideId "2021285"]
[BlackFideId "13303732"]
[WhiteElo "2607"]
[BlackElo "2486"]
[Result "1-0"]
[Round "11"]
[TimeControl "180+1"]
[Date "2022.12.06"]
[WhiteClock "0:02:28"]
[BlackClock "0:01:01"]

1. e4 {[%clk 0:03:00]}  c5 {[%clk 0:02:59]} 2. d4 {[%clk 0:03:00]}  cxd4 {[%clk 0:02:58]} 3. c3 {[%clk 0:03:01]}  Nf6 {[%clk 0:02:58]} 4. e5 {[%clk 0:03:01]}  Nd5 {[%clk 0:02:59]} 5. Nf3 {[%clk 0:03:02]}  Nc6 {[%clk 0:02:58]} 6. Bc4 {[%clk 0:03:02]}  Nb6 {[%clk 0:02:59]} 7. Bb3 {[%clk 0:03:03]}  d5 {[%clk 0:02:59]} 8. exd6 {[%clk 0:03:03]}  Qxd6 {[%clk 0:02:59]} 9. cxd4 {[%clk 0:03:04]}  Be6 {[%clk 0:02:59]} 10. Nc3 {[%clk 0:03:04]}  Bxb3 {[%clk 0:02:57]} 11. Qxb3 {[%clk 0:03:05]}  e6 {[%clk 0:02:57]} 12. O-O {[%clk 0:03:06]}  Be7 {[%clk 0:02:58]} 13. Rd1 {[%clk 0:03:07]}  Rd8 {[%clk 0:02:53]} 14. Be3 {[%clk 0:03:07]}  O-O {[%clk 0:02:52]} 15. d5 {[%clk 0:03:08]}  Nxd5 {[%clk 0:02:39]} 16. Nxd5 {[%clk 0:03:08]}  exd5 {[%clk 0:02:39]} 17. Qxb7 {[%clk 0:03:09]}  Rb8 {[%clk 0:02:36]} 18. Qa6 {[%clk 0:03:08]}  Rxb2 {[%clk 0:02:35]} 19. Rac1 {[%clk 0:03:03]}  Ne5 {[%clk 0:02:35]} 20. Qxd6 {[%clk 0:03:03]}  Nxf3+ {[%clk 0:02:33]} 21. gxf3 {[%clk 0:03:04]}  Bxd6 {[%clk 0:02:33]} 22. Rxd5 {[%clk 0:03:04]}  Bb8 {[%clk 0:02:26]} 23. Ra5 {[%clk 0:03:02]}  Rb7 {[%clk 0:02:26]} 24. Rc4 {[%clk 0:02:59]}  Rd8 {[%clk 0:02:22]} 25. Rca4 {[%clk 0:02:57]}  Rdd7 {[%clk 0:02:22]} 26. Kg2 {[%clk 0:02:57]}  f6 {[%clk 0:02:22]} 27. Ra6 {[%clk 0:02:56]}  Kf7 {[%clk 0:02:22]} 28. h4 {[%clk 0:02:56]}  h5 {[%clk 0:02:22]} 29. R4a5 {[%clk 0:02:56]}  Kg6 {[%clk 0:02:21]} 30. f4 {[%clk 0:02:53]}  Re7 {[%clk 0:02:18]} 31. Rg5+ {[%clk 0:02:52]}  Kh6 {[%clk 0:02:13]} 32. f5 {[%clk 0:02:50]}  Kh7 {[%clk 0:02:09]} 33. Rxh5+ {[%clk 0:02:48]}  Kg8 {[%clk 0:02:09]} 34. Re6 {[%clk 0:02:47]}  Be5 {[%clk 0:01:44]} 35. Bc5 {[%clk 0:02:45]}  Rxe6 {[%clk 0:01:42]} 36. fxe6 {[%clk 0:02:46]}  g6 {[%clk 0:01:43]} 37. e7 {[%clk 0:02:38]}  Rb8 {[%clk 0:01:41]} 38. Rh6 {[%clk 0:02:32]}  Kg7 {[%clk 0:01:41]} 39. Be3 {[%clk 0:02:32]}  Re8 {[%clk 0:01:34]} 40. h5 {[%clk 0:02:31]}  g5 {[%clk 0:01:14]} 41. Rg6+ {[%clk 0:02:29]}  Kh7 {[%clk 0:01:12]} 42. Bc5 {[%clk 0:02:30]}  a6 {[%clk 0:01:09]} 43. Kf3 {[%clk 0:02:29]}  Rc8 {[%clk 0:01:03]} 44. Ke4 {[%clk 0:02:29]}  Ba1 {[%clk 0:01:01]} 45. Kd5 {[%clk 0:02:28]} 1-0


[Site "https://www.chess.com"]

[Event "Titled Tuesday Blitz December 06 Early 2022"]
[White "Liu, Xiangyi"]
[Black "Gormally, Daniel W"]
[WhiteFideId "8605718"]
[BlackFideId "406465"]
[WhiteElo "2323"]
[BlackElo "2553"]
[Result "1-0"]
[Round "11"]
[TimeControl "180+1"]
[Date "2022.12.06"]
[WhiteClock "0:01:56"]
[BlackClock "0:02:29"]

1. e4 {[%clk 0:02:59]}  c5 {[%clk 0:02:59]} 2. Nf3 {[%clk 0:02:59]}  d6 {[%clk 0:03:00]} 3. g3 {[%clk 0:02:59]}  Nc6 {[%clk 0:02:59]} 4. Bg2 {[%clk 0:02:59]}  Bg4 {[%clk 0:03:00]} 5. h3 {[%clk 0:02:59]}  Bh5 {[%clk 0:02:59]} 6. O-O {[%clk 0:02:57]}  e6 {[%clk 0:02:58]} 7. c3 {[%clk 0:02:56]}  Nf6 {[%clk 0:02:58]} 8. d3 {[%clk 0:02:49]}  d5 {[%clk 0:02:57]} 9. exd5 {[%clk 0:02:36]}  Nxd5 {[%clk 0:02:51]} 10. Qe2 {[%clk 0:02:28]}  Be7 {[%clk 0:02:48]} 11. Nbd2 {[%clk 0:02:25]}  O-O {[%clk 0:02:48]} 12. a4 {[%clk 0:02:24]}  Qd7 {[%clk 0:02:40]} 13. Nc4 {[%clk 0:02:23]}  f6 {[%clk 0:02:32]} 14. Re1 {[%clk 0:02:04]}  e5 {[%clk 0:02:29]} 15. Nfxe5 {[%clk 0:01:56]} 1-0


[Site "https://www.chess.com"]

[Event "Titled Tuesday Blitz December 06 Early 2022"]
[White "Martin, Lewis"]
[Black "Chernov, Mikhail"]
[WhiteFideId "410551"]
[BlackFideId "24143170"]
[WhiteElo "2145"]
[BlackElo "2113"]
[Result "0-1"]
[Round "11"]
[TimeControl "180+1"]
[Date "2022.12.07"]
[WhiteClock "0:00:31"]
[BlackClock "0:00:26"]

1. e4 {[%clk 0:03:00]}  c5 {[%clk 0:02:59]} 2. Nf3 {[%clk 0:03:00]}  Nc6 {[%clk 0:02:59]} 3. d4 {[%clk 0:03:01]}  cxd4 {[%clk 0:02:59]} 4. Nxd4 {[%clk 0:03:01]}  Nf6 {[%clk 0:02:59]} 5. Nc3 {[%clk 0:03:02]}  d6 {[%clk 0:02:59]} 6. Be2 {[%clk 0:02:57]}  e5 {[%clk 0:02:59]} 7. Nb3 {[%clk 0:02:52]}  Be7 {[%clk 0:02:59]} 8. Be3 {[%clk 0:02:51]}  O-O {[%clk 0:03:00]} 9. O-O {[%clk 0:02:50]}  a5 {[%clk 0:03:01]} 10. a4 {[%clk 0:02:49]}  Nb4 {[%clk 0:03:01]} 11. f3 {[%clk 0:02:46]}  d5 {[%clk 0:02:51]} 12. exd5 {[%clk 0:02:45]}  Nfxd5 {[%clk 0:02:52]} 13. Nxd5 {[%clk 0:02:45]}  Nxd5 {[%clk 0:02:52]} 14. Bf2 {[%clk 0:02:44]}  Nf4 {[%clk 0:02:36]} 15. Bb5 {[%clk 0:02:38]}  Bf5 {[%clk 0:02:28]} 16. Re1 {[%clk 0:02:34]}  Qc7 {[%clk 0:02:25]} 17. c3 {[%clk 0:02:23]}  Rad8 {[%clk 0:01:53]} 18. Qc1 {[%clk 0:02:15]}  Bg5 {[%clk 0:01:50]} 19. Be3 {[%clk 0:02:09]}  Bd3 {[%clk 0:01:28]} 20. g3 {[%clk 0:01:08]}  Bxb5 {[%clk 0:01:16]} 21. gxf4 {[%clk 0:01:04]}  exf4 {[%clk 0:01:17]} 22. Bd4 {[%clk 0:00:56]}  Bc6 {[%clk 0:01:07]} 23. Rf1 {[%clk 0:00:43]}  Rfe8 {[%clk 0:00:59]} 24. Qc2 {[%clk 0:00:40]}  Bd5 {[%clk 0:00:41]} 25. Nc5 {[%clk 0:00:36]}  b6 {[%clk 0:00:36]} 26. Ne4 {[%clk 0:00:33]}  Bxe4 {[%clk 0:00:35]} 27. fxe4 {[%clk 0:00:33]}  Rxd4 {[%clk 0:00:36]} 28. Qg2 {[%clk 0:00:31]}  Rd6 {[%clk 0:00:26]} 0-1


[Site "https://www.chess.com"]

[Event "Titled Tuesday Blitz December 06 Early 2022"]
[White "Mazurkiewicz, Michal"]
[Black "Ismayil, Malak"]
[WhiteFideId "1124943"]
[BlackFideId "13412604"]
[WhiteElo "2081"]
[BlackElo "1880"]
[Result "1-0"]
[Round "11"]
[TimeControl "180+1"]
[Date "2022.12.07"]
[WhiteClock "0:00:18"]
[BlackClock "0:00:01"]

1. e4 {[%clk 0:03:00]}  e5 {[%clk 0:02:58]} 2. Nf3 {[%clk 0:03:00]}  Nc6 {[%clk 0:02:58]} 3. d3 {[%clk 0:03:00]}  d6 {[%clk 0:02:57]} 4. g3 {[%clk 0:03:00]}  Nf6 {[%clk 0:02:57]} 5. Bg2 {[%clk 0:03:00]}  g6 {[%clk 0:02:58]} 6. O-O {[%clk 0:03:01]}  Bg7 {[%clk 0:02:58]} 7. c3 {[%clk 0:03:01]}  O-O {[%clk 0:02:59]} 8. b4 {[%clk 0:03:02]}  a6 {[%clk 0:02:59]} 9. a3 {[%clk 0:03:01]}  Bg4 {[%clk 0:02:59]} 10. Nbd2 {[%clk 0:03:01]}  d5 {[%clk 0:02:58]} 11. h3 {[%clk 0:03:01]}  Bxf3 {[%clk 0:02:57]} 12. Qxf3 {[%clk 0:03:00]}  dxe4 {[%clk 0:02:56]} 13. dxe4 {[%clk 0:03:00]}  Qe7 {[%clk 0:02:56]} 14. Nc4 {[%clk 0:02:59]}  Qe6 {[%clk 0:02:56]} 15. Ne3 {[%clk 0:02:53]}  Rad8 {[%clk 0:02:49]} 16. Nd5 {[%clk 0:02:53]}  Ne7 {[%clk 0:02:40]} 17. Nxc7 {[%clk 0:02:38]}  Qc6 {[%clk 0:02:39]} 18. Bg5 {[%clk 0:02:37]}  Rd6 {[%clk 0:02:15]} 19. Nd5 {[%clk 0:01:48]}  Nexd5 {[%clk 0:02:10]} 20. exd5 {[%clk 0:01:48]}  Qc4 {[%clk 0:01:53]} 21. Rad1 {[%clk 0:01:41]}  Rc8 {[%clk 0:01:31]} 22. Rfe1 {[%clk 0:01:06]}  e4 {[%clk 0:01:08]} 23. Qf4 {[%clk 0:00:57]}  Rxd5 {[%clk 0:00:25]} 24. Bxf6 {[%clk 0:00:54]}  Rf5 {[%clk 0:00:25]} 25. Rd4 {[%clk 0:00:19]}  Rxf4 {[%clk 0:00:07]} 26. Rxc4 {[%clk 0:00:18]}  Rxc4 {[%clk 0:00:08]} 27. Bxg7 {[%clk 0:00:18]}  Rf5 {[%clk 0:00:04]} 28. Bd4 {[%clk 0:00:18]}  Rb5 {[%clk 0:00:01]} 29. Bf1 {[%clk 0:00:18]} 1-0


[Site "https://www.chess.com"]

[Event "Titled Tuesday Blitz December 06 Early 2022"]
[White "Mitrovic, Darko R"]
[Black "Osiecki, Stanislaw"]
[WhiteFideId "927023"]
[BlackFideId "1102990"]
[WhiteElo "2150"]
[BlackElo "2088"]
[Result "1-0"]
[Round "11"]
[TimeControl "180+1"]
[Date "2022.12.07"]
[WhiteClock "0:00:03"]
[BlackClock "0:00:01"]

1. d4 {[%clk 0:03:00]}  Nf6 {[%clk 0:02:58]} 2. c4 {[%clk 0:02:59]}  d6 {[%clk 0:02:58]} 3. Nf3 {[%clk 0:02:59]}  g6 {[%clk 0:02:58]} 4. g3 {[%clk 0:02:59]}  Bg7 {[%clk 0:02:58]} 5. Bg2 {[%clk 0:02:59]}  O-O {[%clk 0:02:59]} 6. O-O {[%clk 0:03:00]}  Nbd7 {[%clk 0:02:59]} 7. Nc3 {[%clk 0:03:00]}  e5 {[%clk 0:03:00]} 8. d5 {[%clk 0:02:59]}  a5 {[%clk 0:02:58]} 9. e4 {[%clk 0:02:59]}  Nc5 {[%clk 0:02:59]} 10. Ne1 {[%clk 0:02:59]}  Nh5 {[%clk 0:02:58]} 11. Nd3 {[%clk 0:02:57]}  Nxd3 {[%clk 0:02:57]} 12. Qxd3 {[%clk 0:02:57]}  f5 {[%clk 0:02:57]} 13. exf5 {[%clk 0:02:45]}  Bxf5 {[%clk 0:02:57]} 14. Ne4 {[%clk 0:02:33]}  Nf6 {[%clk 0:02:55]} 15. Be3 {[%clk 0:02:27]}  b6 {[%clk 0:02:52]} 16. Nxf6+ {[%clk 0:02:18]}  Qxf6 {[%clk 0:02:49]} 17. Be4 {[%clk 0:02:18]}  Bxe4 {[%clk 0:02:33]} 18. Qxe4 {[%clk 0:02:17]}  Qf5 {[%clk 0:02:33]} 19. Qxf5 {[%clk 0:02:13]}  gxf5 {[%clk 0:02:32]} 20. Rab1 {[%clk 0:02:06]}  e4 {[%clk 0:02:31]} 21. Rfd1 {[%clk 0:01:59]}  a4 {[%clk 0:02:30]} 22. Kf1 {[%clk 0:01:54]}  Rfb8 {[%clk 0:02:28]} 23. Ke2 {[%clk 0:01:41]}  b5 {[%clk 0:02:28]} 24. c5 {[%clk 0:01:41]}  Be5 {[%clk 0:02:14]} 25. Rd2 {[%clk 0:01:35]}  b4 {[%clk 0:02:08]} 26. Rc1 {[%clk 0:01:29]}  Rc8 {[%clk 0:01:35]} 27. Bd4 {[%clk 0:01:26]}  Bxd4 {[%clk 0:01:04]} 28. Rxd4 {[%clk 0:01:26]}  dxc5 {[%clk 0:01:05]} 29. Rxc5 {[%clk 0:01:25]}  Rab8 {[%clk 0:01:05]} 30. Rcc4 {[%clk 0:01:02]}  b3 {[%clk 0:01:04]} 31. a3 {[%clk 0:00:59]}  Rb5 {[%clk 0:01:00]} 32. Rxa4 {[%clk 0:00:56]}  Rd8 {[%clk 0:01:00]} 33. Rab4 {[%clk 0:00:54]}  Rdxd5 {[%clk 0:00:54]} 34. Rxd5 {[%clk 0:00:50]}  Rxd5 {[%clk 0:00:53]} 35. Rxb3 {[%clk 0:00:49]}  Kf7 {[%clk 0:00:51]} 36. Rc3 {[%clk 0:00:46]}  c5 {[%clk 0:00:42]} 37. b4 {[%clk 0:00:20]}  cxb4 {[%clk 0:00:40]} 38. axb4 {[%clk 0:00:20]}  Rb5 {[%clk 0:00:36]} 39. Rc5 {[%clk 0:00:19]}  Rxb4 {[%clk 0:00:37]} 40. Rxf5+ {[%clk 0:00:18]}  Ke6 {[%clk 0:00:32]} 41. Rh5 {[%clk 0:00:18]}  Rb7 {[%clk 0:00:31]} 42. Ke3 {[%clk 0:00:16]}  Kf6 {[%clk 0:00:25]} 43. Kxe4 {[%clk 0:00:14]}  Kg6 {[%clk 0:00:18]} 44. Rh4 {[%clk 0:00:13]}  Rb4+ {[%clk 0:00:15]} 45. Kf3 {[%clk 0:00:12]}  Rb3+ {[%clk 0:00:13]} 46. Kg2 {[%clk 0:00:12]}  Rb2 {[%clk 0:00:13]} 47. Rc4 {[%clk 0:00:11]}  h5 {[%clk 0:00:13]} 48. h4 {[%clk 0:00:10]}  Rb6 {[%clk 0:00:12]} 49. Rc5 {[%clk 0:00:09]}  Ra6 {[%clk 0:00:11]} 50. Rg5+ {[%clk 0:00:08]}  Kh6 {[%clk 0:00:11]} 51. f3 {[%clk 0:00:07]}  Ra2+ {[%clk 0:00:11]} 52. Kh3 {[%clk 0:00:07]}  Rf2 {[%clk 0:00:11]} 53. Rf5 {[%clk 0:00:06]}  Rf1 {[%clk 0:00:09]} 54. g4 {[%clk 0:00:06]}  hxg4+ {[%clk 0:00:05]} 55. fxg4 {[%clk 0:00:05]}  Ra1 {[%clk 0:00:04]} 56. Rf6+ {[%clk 0:00:05]}  Kg7 {[%clk 0:00:03]} 57. g5 {[%clk 0:00:05]}  Ra3+ {[%clk 0:00:02]} 58. Kg4 {[%clk 0:00:05]}  Ra4+ {[%clk 0:00:02]} 59. Kh5 {[%clk 0:00:04]}  Rb4 {[%clk 0:00:02]} 60. Rd6 {[%clk 0:00:03]}  Kf7 {[%clk 0:00:01]} 61. Rd7+ {[%clk 0:00:03]}  Kg8 {[%clk 0:00:01]} 62. Ra7 {[%clk 0:00:03]} 1-0


[Site "https://www.chess.com"]

[Event "Titled Tuesday Blitz December 06 Early 2022"]
[White "Mkrtchian, Lilit"]
[Black "Yaran, Siar"]
[WhiteFideId "13300601"]
[BlackFideId "6323006"]
[WhiteElo "2316"]
[BlackElo "2191"]
[Result "0-1"]
[Round "11"]
[TimeControl "180+1"]
[Date "2022.12.07"]
[WhiteClock "0:00:01"]
[BlackClock "0:00:13"]

1. Nf3 {[%clk 0:03:00]}  Nf6 {[%clk 0:03:00]} 2. g3 {[%clk 0:02:59]}  e6 {[%clk 0:03:00]} 3. Bg2 {[%clk 0:02:57]}  d5 {[%clk 0:03:01]} 4. O-O {[%clk 0:02:57]}  Be7 {[%clk 0:03:02]} 5. d3 {[%clk 0:02:53]}  O-O {[%clk 0:03:02]} 6. a4 {[%clk 0:02:52]}  a5 {[%clk 0:03:02]} 7. Nbd2 {[%clk 0:02:42]}  Nbd7 {[%clk 0:03:02]} 8. e4 {[%clk 0:02:41]}  dxe4 {[%clk 0:03:02]} 9. dxe4 {[%clk 0:02:41]}  e5 {[%clk 0:03:02]} 10. Nh4 {[%clk 0:02:32]}  Re8 {[%clk 0:03:00]} 11. Nf5 {[%clk 0:02:32]}  Bf8 {[%clk 0:03:00]} 12. Nc4 {[%clk 0:02:26]}  Nc5 {[%clk 0:02:37]} 13. Qxd8 {[%clk 0:02:17]}  Rxd8 {[%clk 0:02:38]} 14. Bg5 {[%clk 0:02:15]}  Ncxe4 {[%clk 0:02:05]} 15. Bxe4 {[%clk 0:01:58]}  Nxe4 {[%clk 0:02:06]} 16. Bxd8 {[%clk 0:00:52]}  Bxf5 {[%clk 0:02:04]} 17. Bxc7 {[%clk 0:00:38]}  Rc8 {[%clk 0:02:03]} 18. Ne3 {[%clk 0:00:38]}  Rxc7 {[%clk 0:01:41]} 19. Nxf5 {[%clk 0:00:37]}  Rxc2 {[%clk 0:01:41]} 20. Rac1 {[%clk 0:00:22]}  Rxb2 {[%clk 0:01:38]} 21. Rc8 {[%clk 0:00:22]}  g6 {[%clk 0:01:39]} 22. Nh6+ {[%clk 0:00:19]}  Kg7 {[%clk 0:01:39]} 23. Rd1 {[%clk 0:00:14]}  Bc5 {[%clk 0:01:30]} 24. Ng4 {[%clk 0:00:14]}  h5 {[%clk 0:01:28]} 25. Re1 {[%clk 0:00:11]}  Ng5 {[%clk 0:00:45]} 26. Rxc5 {[%clk 0:00:09]}  Nf3+ {[%clk 0:00:45]} 27. Kf1 {[%clk 0:00:09]}  Nxe1 {[%clk 0:00:36]} 28. Nxe5 {[%clk 0:00:09]}  Rb1 {[%clk 0:00:33]} 29. Ke2 {[%clk 0:00:05]}  b6 {[%clk 0:00:30]} 30. Rc7 {[%clk 0:00:06]}  Kf6 {[%clk 0:00:29]} 31. Nxf7 {[%clk 0:00:06]}  Nc2 {[%clk 0:00:27]} 32. Rxc2 {[%clk 0:00:05]}  Kxf7 {[%clk 0:00:27]} 33. Rc6 {[%clk 0:00:05]}  g5 {[%clk 0:00:21]} 34. h4 {[%clk 0:00:04]}  gxh4 {[%clk 0:00:20]} 35. gxh4 {[%clk 0:00:04]}  Rb4 {[%clk 0:00:21]} 36. Ke3 {[%clk 0:00:04]}  Rxh4 {[%clk 0:00:18]} 37. Rxb6 {[%clk 0:00:03]}  Rxa4 {[%clk 0:00:18]} 38. Ra6 {[%clk 0:00:02]}  Kg7 {[%clk 0:00:18]} 39. f4 {[%clk 0:00:02]}  h4 {[%clk 0:00:18]} 40. Kf3 {[%clk 0:00:02]}  h3 {[%clk 0:00:18]} 41. Kg3 {[%clk 0:00:02]}  Ra3+ {[%clk 0:00:18]} 42. Kh2 {[%clk 0:00:03]}  Kf7 {[%clk 0:00:19]} 43. f5 {[%clk 0:00:03]}  Ke7 {[%clk 0:00:19]} 44. Rb6 {[%clk 0:00:03]}  a4 {[%clk 0:00:18]} 45. Ra6 {[%clk 0:00:03]}  Kf7 {[%clk 0:00:18]} 46. Rb6 {[%clk 0:00:03]}  Kg7 {[%clk 0:00:18]} 47. Ra6 {[%clk 0:00:03]}  Kf7 {[%clk 0:00:18]} 48. Rb6 {[%clk 0:00:03]}  Rb3 {[%clk 0:00:19]} 49. Ra6 {[%clk 0:00:03]}  a3 {[%clk 0:00:19]} 50. Ra4 {[%clk 0:00:02]}  Kf6 {[%clk 0:00:19]} 51. Ra5 {[%clk 0:00:03]}  Kg5 {[%clk 0:00:20]} 52. Kh1 {[%clk 0:00:01]}  Kg4 {[%clk 0:00:13]} 53. f6 {[%clk 0:00:02]}  Kg3 {[%clk 0:00:13]} 54. Rg5+ {[%clk 0:00:01]}  Kh4 {[%clk 0:00:14]} 55. Rf5 {[%clk 0:00:01]}  a2 {[%clk 0:00:13]} 56. Rf1 {[%clk 0:00:01]}  Rb1 {[%clk 0:00:13]} 0-1


[Site "https://www.chess.com"]

[Event "Titled Tuesday Blitz December 06 Early 2022"]
[White "Moksh Amit Doshi"]
[Black "Manon-og, Ramon Jr."]
[WhiteFideId "25064967"]
[BlackFideId "5200776"]
[WhiteElo "2297"]
[BlackElo "2376"]
[Result "1-0"]
[Round "11"]
[TimeControl "180+1"]
[Date "2022.12.07"]
[WhiteClock "0:01:13"]
[BlackClock "0:00:38"]

1. e4 {[%clk 0:03:00]}  c5 {[%clk 0:02:57]} 2. Nf3 {[%clk 0:02:54]}  d6 {[%clk 0:02:54]} 3. Bb5+ {[%clk 0:02:52]}  Nd7 {[%clk 0:02:54]} 4. a4 {[%clk 0:02:52]}  a6 {[%clk 0:02:52]} 5. Be2 {[%clk 0:02:46]}  Ngf6 {[%clk 0:02:52]} 6. Nc3 {[%clk 0:02:47]}  g6 {[%clk 0:02:52]} 7. O-O {[%clk 0:02:45]}  Bg7 {[%clk 0:02:52]} 8. a5 {[%clk 0:02:45]}  O-O {[%clk 0:02:51]} 9. Re1 {[%clk 0:02:45]}  Rb8 {[%clk 0:02:51]} 10. h3 {[%clk 0:02:42]}  b5 {[%clk 0:02:50]} 11. axb6 {[%clk 0:02:42]}  Nxb6 {[%clk 0:02:51]} 12. Bxa6 {[%clk 0:02:41]}  Bxa6 {[%clk 0:02:50]} 13. Rxa6 {[%clk 0:02:40]}  Qc8 {[%clk 0:02:50]} 14. Ra7 {[%clk 0:02:35]}  Re8 {[%clk 0:02:49]} 15. d3 {[%clk 0:02:35]}  c4 {[%clk 0:02:48]} 16. d4 {[%clk 0:02:34]}  Ra8 {[%clk 0:02:41]} 17. Rxa8 {[%clk 0:02:33]}  Qxa8 {[%clk 0:02:42]} 18. Bg5 {[%clk 0:02:29]}  Qa5 {[%clk 0:02:38]} 19. Qa1 {[%clk 0:02:26]}  Qb4 {[%clk 0:02:37]} 20. Bd2 {[%clk 0:02:07]}  Ra8 {[%clk 0:02:33]} 21. Qb1 {[%clk 0:02:06]}  Na4 {[%clk 0:02:23]} 22. Nxa4 {[%clk 0:02:03]}  Qxa4 {[%clk 0:02:24]} 23. c3 {[%clk 0:02:00]}  Qb3 {[%clk 0:02:13]} 24. e5 {[%clk 0:01:58]}  dxe5 {[%clk 0:02:03]} 25. Nxe5 {[%clk 0:01:58]}  Nd5 {[%clk 0:02:01]} 26. Qe4 {[%clk 0:01:50]}  e6 {[%clk 0:01:59]} 27. Nxf7 {[%clk 0:01:50]}  Ra6 {[%clk 0:01:54]} 28. Ng5 {[%clk 0:01:47]}  Qxb2 {[%clk 0:01:53]} 29. Qf3 {[%clk 0:01:41]}  Bf6 {[%clk 0:01:37]} 30. Ne4 {[%clk 0:01:40]}  Bg7 {[%clk 0:01:31]} 31. Nc5 {[%clk 0:01:38]}  Qxd2 {[%clk 0:01:29]} 32. Rb1 {[%clk 0:01:19]}  Ra8 {[%clk 0:01:14]} 33. Nxe6 {[%clk 0:01:17]}  Qc2 {[%clk 0:00:55]} 34. Rb7 {[%clk 0:01:13]}  Qc1+ {[%clk 0:00:54]} 35. Kh2 {[%clk 0:01:14]}  Bh6 {[%clk 0:00:41]} 36. Qf7+ {[%clk 0:01:12]}  Kh8 {[%clk 0:00:38]} 37. Qxh7# {[%clk 0:01:13]} 1-0


[Site "https://www.chess.com"]

[Event "Titled Tuesday Blitz December 06 Early 2022"]
[White "Movahed, Sina"]
[Black "Agasarov, Benik"]
[WhiteFideId "42520835"]
[BlackFideId "13314823"]
[WhiteElo "2225"]
[BlackElo "2179"]
[Result "0-1"]
[Round "11"]
[TimeControl "180+1"]
[Date "2022.12.06"]
[WhiteClock "0:01:01"]
[BlackClock "0:00:22"]

1. e4 {[%clk 0:03:00]}  c5 {[%clk 0:02:58]} 2. Nf3 {[%clk 0:03:00]}  d6 {[%clk 0:02:51]} 3. d4 {[%clk 0:03:00]}  cxd4 {[%clk 0:02:52]} 4. Nxd4 {[%clk 0:03:01]}  Nf6 {[%clk 0:02:52]} 5. Nc3 {[%clk 0:03:01]}  Nc6 {[%clk 0:02:52]} 6. Bg5 {[%clk 0:02:59]}  e6 {[%clk 0:02:50]} 7. Qd2 {[%clk 0:02:58]}  a6 {[%clk 0:02:50]} 8. f4 {[%clk 0:02:58]}  Bd7 {[%clk 0:02:49]} 9. O-O-O {[%clk 0:02:58]}  Be7 {[%clk 0:02:45]} 10. Nf3 {[%clk 0:02:56]}  b5 {[%clk 0:02:45]} 11. Bxf6 {[%clk 0:02:53]}  gxf6 {[%clk 0:02:44]} 12. f5 {[%clk 0:02:53]}  b4 {[%clk 0:02:43]} 13. Ne2 {[%clk 0:02:53]}  Qb6 {[%clk 0:02:43]} 14. Nf4 {[%clk 0:02:52]}  Ne5 {[%clk 0:02:35]} 15. Nd4 {[%clk 0:02:52]}  O-O {[%clk 0:01:19]} 16. fxe6 {[%clk 0:02:50]}  fxe6 {[%clk 0:01:20]} 17. Ndxe6 {[%clk 0:02:48]}  Bxe6 {[%clk 0:01:18]} 18. Nxe6 {[%clk 0:02:49]}  Rfc8 {[%clk 0:01:18]} 19. Kb1 {[%clk 0:02:48]}  Ra7 {[%clk 0:01:13]} 20. Nf4 {[%clk 0:02:46]}  Bf8 {[%clk 0:01:09]} 21. Nd5 {[%clk 0:02:46]}  Qc5 {[%clk 0:01:07]} 22. Nxf6+ {[%clk 0:02:45]}  Kh8 {[%clk 0:01:06]} 23. Nd5 {[%clk 0:02:41]}  Bh6 {[%clk 0:00:59]} 24. Qe2 {[%clk 0:02:37]}  Rf7 {[%clk 0:00:55]} 25. c4 {[%clk 0:01:52]}  bxc3 {[%clk 0:00:52]} 26. Qc2 {[%clk 0:01:48]}  Rf2 {[%clk 0:00:50]} 27. Qxc3 {[%clk 0:01:46]}  Rb8 {[%clk 0:00:49]} 28. b3 {[%clk 0:01:43]}  Qa3 {[%clk 0:00:47]} 29. Nb4 {[%clk 0:01:25]}  Rxb4 {[%clk 0:00:46]} 30. Be2 {[%clk 0:01:19]}  Rxe2 {[%clk 0:00:45]} 31. Qc8+ {[%clk 0:01:18]}  Kg7 {[%clk 0:00:45]} 32. Qc7+ {[%clk 0:01:19]}  Nf7 {[%clk 0:00:43]} 33. Qc3+ {[%clk 0:01:19]}  Ne5 {[%clk 0:00:37]} 34. Qc7+ {[%clk 0:01:16]}  Kg8 {[%clk 0:00:36]} 35. Qd8+ {[%clk 0:01:12]}  Bf8 {[%clk 0:00:36]} 36. Qg5+ {[%clk 0:01:12]}  Ng6 {[%clk 0:00:34]} 37. Rd2 {[%clk 0:01:06]}  Rxd2 {[%clk 0:00:27]} 38. Qxd2 {[%clk 0:01:07]}  Qa5 {[%clk 0:00:24]} 39. Rf1 {[%clk 0:01:01]}  Rxb3+ {[%clk 0:00:22]} 0-1


[Site "https://www.chess.com"]

[Event "Titled Tuesday Blitz December 06 Early 2022"]
[White "Muminova, Nafisa"]
[Black "Ciuffoletti, Paolo"]
[WhiteFideId "14201526"]
[BlackFideId "807630"]
[WhiteElo "2258"]
[BlackElo "2143"]
[Result "1-0"]
[Round "11"]
[TimeControl "180+1"]
[Date "2022.12.07"]
[WhiteClock "0:00:36"]
[BlackClock "0:00:05"]

1. e4 {[%clk 0:03:00]}  c5 {[%clk 0:02:56]} 2. Nf3 {[%clk 0:03:00]}  Nc6 {[%clk 0:02:56]} 3. Bb5 {[%clk 0:02:54]}  e6 {[%clk 0:02:55]} 4. Bxc6 {[%clk 0:02:54]}  bxc6 {[%clk 0:02:56]} 5. O-O {[%clk 0:02:54]}  Ne7 {[%clk 0:02:54]} 6. d3 {[%clk 0:02:54]}  Ng6 {[%clk 0:02:53]} 7. Be3 {[%clk 0:02:51]}  d5 {[%clk 0:02:48]} 8. a3 {[%clk 0:02:47]}  Be7 {[%clk 0:02:41]} 9. c4 {[%clk 0:02:19]}  O-O {[%clk 0:02:24]} 10. Qc1 {[%clk 0:02:07]}  d4 {[%clk 0:02:00]} 11. Bd2 {[%clk 0:01:53]}  e5 {[%clk 0:01:59]} 12. b4 {[%clk 0:01:50]}  f5 {[%clk 0:01:55]} 13. Bg5 {[%clk 0:01:36]}  fxe4 {[%clk 0:01:42]} 14. dxe4 {[%clk 0:01:37]}  Nf4 {[%clk 0:01:38]} 15. Bxf4 {[%clk 0:01:30]}  exf4 {[%clk 0:01:30]} 16. bxc5 {[%clk 0:01:20]}  Bxc5 {[%clk 0:01:16]} 17. Nbd2 {[%clk 0:01:20]}  Bg4 {[%clk 0:00:52]} 18. h3 {[%clk 0:01:19]}  Bh5 {[%clk 0:00:50]} 19. Re1 {[%clk 0:01:18]}  d3 {[%clk 0:00:44]} 20. Qc3 {[%clk 0:01:15]}  Rb8 {[%clk 0:00:39]} 21. e5 {[%clk 0:01:13]}  a5 {[%clk 0:00:28]} 22. Ne4 {[%clk 0:00:57]}  Be7 {[%clk 0:00:24]} 23. c5 {[%clk 0:00:53]}  Bxf3 {[%clk 0:00:22]} 24. gxf3 {[%clk 0:00:53]}  a4 {[%clk 0:00:17]} 25. Qc4+ {[%clk 0:00:48]}  Kh8 {[%clk 0:00:16]} 26. Rad1 {[%clk 0:00:45]}  Rb3 {[%clk 0:00:10]} 27. Qxa4 {[%clk 0:00:44]}  Qb8 {[%clk 0:00:09]} 28. Qc4 {[%clk 0:00:41]}  Rd8 {[%clk 0:00:08]} 29. Nd6 {[%clk 0:00:39]}  Bxd6 {[%clk 0:00:07]} 30. exd6 {[%clk 0:00:39]}  Qb5 {[%clk 0:00:07]} 31. Qf7 {[%clk 0:00:36]}  Rxa3 {[%clk 0:00:05]} 32. Re8+ {[%clk 0:00:36]} 1-0


[Site "https://www.chess.com"]